bitfinex-derivatives/quotes_SOLF0:USTF0_20250404
["timestamp","ask_amount","ask_price","bid_price","bid_amount"]
[1743763298931,0.05656829,116.18,116.16,38.12]
[1743763299430,0.05656829,116.18,116.16,46.7289]
[1743763299632,0.05656829,116.18,116.16,38.12]
[1743763301128,0.05656829,116.18,116.16,46.729]
[1743763302026,0.05656829,116.18,116.17,8.6087]
[1743763302427,0.05656829,116.18,116.16,38.12]
[1743763302826,0.05656829,116.18,116.16,46.7291]
[1743763303336,0.05656829,116.18,116.17,8.6087]
[1743763303741,0.05656829,116.18,116.16,38.12]
[1743763303941,0.05656829,116.18,116.16,46.729]
[1743763304136,0.05656829,116.18,116.16,38.12]
[1743763304339,0.05656829,116.18,116.15,0.06230089]
[1743763304537,8.6091,116.17,116.15,0.06230089]
[1743763305442,10.9204,116.17,116.15,0.06230089]
[1743763305640,0.05656829,116.18,116.15,0.06230089]
[1743763306043,0.05656829,116.18,116.16,8.6089]
[1743763306234,0.05656829,116.18,116.15,38.16230089]
[1743763306743,8.66486829,116.18,116.15,46.77210089]
[1743763306945,0.05656829,116.18,116.15,38.16230089]
[1743763307749,0.05656829,116.18,116.17,8.6087]
[1743763307946,0.05656829,116.18,116.15,38.16230089]
[1743763308548,0.05656829,116.18,116.15,68.8613329]
[1743763308852,0.05656829,116.18,116.17,8.6087]
[1743763315556,0.05656829,116.18,116.15,38.16230089]
[1743763316856,0.05656829,116.18,116.16,8.6091]
[1743763317152,0.05656829,116.18,116.15,38.16230089]
[1743763317153,8.65656829,116.18,116.04,382.0694]
[1743763317351,8.6109,116.14,116.11,8.6128]
[1743763317549,38.08,116.16,116.11,8.6128]
[1743763318053,2.2942,116.17,116.1,38.08]
[1743763318553,2.2942,116.17,116.02,17.2386]
[1743763318554,0.05692438,116.15,116.02,17.2386]
[1743763318754,30.69903201,116.15,116.04,30.69903201]
[1743763318955,30.69903201,116.15,115.99,330.4]
[1743763318956,8.6161,116.07,116.02,30.69903201]
[1743763319353,2.2559,116.09,116.02,68.79903201]
[1743763319560,0.05453756,116.06,116.05,8.6176]
[1743763319858,0.05453756,116.06,116.05,38.1]
[1743763320057,0.05453756,116.06,116.05,46.7176]
[1743763322057,0.05453756,116.06,116.05,38.1]
[1743763322453,0.05453756,116.06,116.01,30.69903201]
[1743763322656,30.69903201,116.1,115.99,361.09903201]
[1743763322851,8.6193,116.03,115.99,399.19903201]
[1743763323057,0.06017221,116.05,115.99,399.19903201]
[1743763323353,0.05540035,116.03,115.99,399.19903201]
[1743763323561,0.05540035,116.03,116.01,30.69903201]
[1743763323765,8.6163,116.07,116.04,8.6181]
[1743763324257,8.616,116.08,116.02,38.1]
[1743763324458,38.1,116.1,116.02,38.1]
[1743763324858,8.68085713,116.07,116.05,0.05696603]
[1743763325258,0.06435713,116.07,116.05,0.05696603]
[1743763325459,0.06435713,116.07,116.05,38.15696603]
[1743763325660,0.06435713,116.07,116.05,0.05696603]
[1743763325860,8.68085713,116.07,116.05,0.05696603]
[1743763326762,8.6169,116.06,116.05,0.05696603]
[1743763326957,0.06435713,116.07,116.05,0.05696603]
[1743763327163,0.06435713,116.07,116.05,38.15696603]
[1743763327463,0.06435713,116.07,116.05,46.77426603]
[1743763327761,0.06435713,116.07,116.05,38.15696603]
[1743763327961,0.06435713,116.07,116.05,46.77446603]
[1743763328259,0.06435713,116.07,116.05,38.15696603]
[1743763328863,0.06435713,116.07,116.06,8.6169]
[1743763330564,2.2559,116.14,116.11,8.6132]
[1743763330764,2.2559,116.14,116.09,38.1]
[1743763330961,8.6123,116.13,116.1,38.1]
[1743763331163,8.6123,116.13,116.1,46.7135]
[1743763331959,0.05564983,116.13,116.1,0.05492962]
[1743763332265,8.6132,116.11,116.1,0.05492962]
[1743763332460,0.05564983,116.13,116.07,38.1]
[1743763332860,2.2559,116.14,116.07,38.1]
[1743763333660,0.06117525,116.12,116.11,8.6131]
[1743763337162,7.525e-05,116.12,116.11,8.6131]
[1743763337869,7.525e-05,116.12,116.1,38.16399248]
[1743763338958,7.525e-05,116.12,116.1,0.06399248]
[1743763339267,8.6132,116.11,116.1,0.06399248]
[1743763339768,8.6146,116.1,116.04,30.69903201]
[1743763339963,68.77903201,116.13,116.05,38.08]
[1743763340364,8.6137,116.11,116.05,38.08]
[1743763340562,38.08,116.13,116.05,38.08]
[1743763340763,8.6132,116.11,116.05,38.08]
[1743763340959,0.06349048,116.1,116.08,0.05514746]
[1743763341568,8.67779048,116.1,116.08,8.67054746]
[1743763341769,8.67779048,116.1,116.08,0.05514746]
[1743763341966,8.67769048,116.1,116.08,0.05514746]
[1743763342370,0.06349048,116.1,116.08,0.05514746]
[1743763342668,8.6146,116.09,116.08,0.05514746]
[1743763343275,10.7909,116.09,116.08,0.05514746]
[1743763343467,2.1763,116.09,116.08,0.05514746]
[1743763344172,10.7909,116.09,116.08,0.05514746]
[1743763344667,2.1763,116.09,116.08,0.05514746]
[1743763345670,9.048e-05,116.1,116.09,8.6146]
[1743763345870,4.4903,116.18,116.08,68.83417947]
[1743763346070,4.4903,116.18,116.08,68.77903201]
[1743763346674,8.6108,116.15,116.12,8.6121]
[1743763346870,0.05650473,116.14,116.12,38.1345526]
[1743763347768,0.05650473,116.14,116.13,8.6116]
[1743763348673,0.05650473,116.14,116.12,38.1345526]
[1743763349371,8.6117,116.13,116.09,38.06]
[1743763349871,8.6117,116.13,116.1,8.6135]
[1743763350073,8.6126,116.12,116.09,38.06]
[1743763350276,10.7961,116.12,116.09,38.06]
[1743763350465,10.85747741,116.12,116.09,38.11831107]
[1743763350671,2.24487741,116.12,116.09,38.11831107]
[1743763350974,2.24487741,116.12,116.09,0.05831107]
[1743763351172,2.24487741,116.12,116.06,38.06]
[1743763351173,8.6151,116.09,116.06,38.06]
[1743763351373,8.6151,116.09,116.04,30.69903201]
[1743763351575,4.4261,116.11,116.04,68.75903201]
[1743763352076,13.0396,116.11,116.08,8.6149]
[1743763352272,0.06104373,116.09,116.08,8.6149]
[1743763352475,0.06104373,116.09,116.04,68.75903201]
[1743763353076,0.06104373,116.09,116.08,8.6154]
[1743763355278,0.06104373,116.09,116.07,8.6157]
[1743763355877,0.06104373,116.09,116.08,8.6154]
[1743763356069,0.06104373,116.09,116.04,68.75903201]
[1743763356470,8.67594373,116.09,116.04,30.69903201]
[1743763356672,8.67594373,116.09,116.04,38.06]
[1743763356981,8.6158,116.08,116.05,8.6172]
[1743763357174,8.6158,116.08,116.04,38.06]
[1743763357372,8.6158,116.08,116.02,30.69903201]
[1743763357575,4.4261,116.11,116.01,330.56]
[1743763357576,8.6162,116.07,116.01,330.56]
[1743763357771,2.23904716,116.06,116.01,330.56]
[1743763358076,2.23904716,116.06,116.01,368.62]
[1743763358779,2.23904716,116.06,116.04,8.6181]
[1743763359282,10.85594716,116.06,116.04,8.6181]
[1743763359483,2.23904716,116.06,116.04,8.6181]
[1743763359681,2.23904716,116.06,116.01,368.62]
[1743763359885,2.23904716,116.06,115.98,30.69903201]
[1743763360181,4.5361,116.05,116.01,8.6199]
[1743763360383,0.05881201,116.03,116.01,8.6199]
[1743763360883,0.05881201,116.03,116.02,8.6198]
[1743763361481,0.05881201,116.03,116.01,8.6202]
[1743763361679,8.67801201,116.03,116.0,38.06]
[1743763361880,0.05881201,116.03,115.99,38.06]
[1743763362182,0.05881201,116.03,116.01,8.6203]
[1743763362683,0.05881201,116.03,116.02,8.6198]
[1743763362982,0.05881201,116.03,115.99,38.06]
[1743763363284,0.05881201,116.03,116.01,8.6202]
[1743763364682,8.67801201,116.03,116.01,8.6202]
[1743763365485,8.67801201,116.03,116.0,8.621]
[1743763366080,0.05881201,116.03,116.0,8.6212]
[1743763366586,8.67791201,116.03,116.0,8.6212]
[1743763367084,0.05881201,116.03,116.0,8.6212]
[1743763367387,30.69903201,116.02,115.91,330.74]
[1743763367588,38.06,116.01,115.93,38.06]
[1743763367789,8.6239,115.97,115.93,38.06]
[1743763368288,8.68716153,115.98,115.95,8.6249]
[1743763368581,0.06386153,115.98,115.94,30.69903201]
[1743763368790,2.1688,116.03,115.96,68.75903201]
[1743763368992,0.05949808,115.97,115.96,68.75903201]
[1743763369292,8.6209,116.01,115.98,8.6224]
[1743763369791,8.6216,116.0,115.97,8.6233]
[1743763370090,8.6216,116.0,115.96,38.06]
[1743763370290,8.68244298,116.0,115.97,0.06045319]
[1743763370492,0.06084298,116.0,115.97,0.06045319]
[1743763372190,0.06084298,116.0,115.97,8.68355319]
[1743763372191,8.68284298,116.0,115.97,8.68355319]
[1743763372498,0.06084298,116.0,115.97,0.06045319]
[1743763373497,8.6224,115.99,115.97,8.68365319]
[1743763373797,0.06084298,116.0,115.97,0.06045319]
[1743763374095,8.6226,115.99,115.97,0.06045319]
[1743763374394,0.06084298,116.0,115.97,0.06045319]
[1743763374597,0.06084298,116.0,115.99,8.6221]
[1743763375094,0.06084298,116.0,115.97,0.06045319]
[1743763375895,8.68244298,116.0,115.98,8.6225]
[1743763376299,0.06084298,116.0,115.98,8.6225]
[1743763376594,0.06084298,116.0,115.97,8.68365319]
[1743763376796,8.68254298,116.0,115.97,0.06045319]
[1743763377097,8.68254298,116.0,115.98,8.6227]
[1743763377293,0.06084298,116.0,115.97,0.06045319]
[1743763377597,8.68244298,116.0,115.97,0.06045319]
[1743763377796,0.06084298,116.0,115.97,0.06045319]
[1743763377997,38.12084298,116.0,115.97,0.06045319]
[1743763378194,4.6413,115.99,115.91,330.74]
[1743763378399,8.6239,115.97,115.91,330.74]
[1743763378597,2.3416,115.98,115.91,368.8]
[1743763378797,2.3416,115.98,115.94,8.6255]
[1743763378995,8.6241,115.97,115.94,8.6255]
[1743763379497,8.68450393,115.97,115.95,8.6247]
[1743763380000,0.06040393,115.97,115.94,8.6254]
[1743763380400,0.06040393,115.97,115.91,368.8]
[1743763380700,8.68440393,115.97,115.91,368.8]
[1743763381002,8.68440393,115.97,115.95,8.6247]
[1743763381799,0.06040393,115.97,115.95,8.6247]
[1743763382002,0.06040393,115.97,115.96,8.6243]
[1743763382703,0.06040393,115.97,115.95,8.6247]
[1743763383396,0.06040393,115.97,115.94,8.6252]
[1743763383601,0.06040393,115.97,115.92,30.69903201]
[1743763383800,0.06040393,115.97,115.91,368.8]
[1743763383998,0.06040393,115.97,115.93,8.6261]
[1743763384195,8.6246,115.96,115.93,8.6261]
[1743763384699,8.6246,115.96,115.94,8.6257]
[1743763384901,4.6413,115.99,115.91,368.8]
[1743763385100,0.06390869,115.96,115.91,368.8]
[1743763385300,0.06390869,115.96,115.91,330.74]
[1743763385503,0.06390869,115.96,115.87,38.04]
[1743763385801,8.6285,115.91,115.89,8.6294]
[1743763386199,0.05831658,115.93,115.87,38.04]
[1743763386401,0.05831658,115.93,115.87,46.6706]
[1743763386596,2.2601,115.93,115.87,38.04]
[1743763386799,0.06573508,115.91,115.87,38.04]
[1743763387103,0.06573508,115.91,115.9,19.28768341]
[1743763387402,0.06573508,115.91,115.9,65.95648341]
[1743763387700,0.06573508,115.91,115.9,38.04]
[1743763388002,0.06573508,115.91,115.86,38.04]
[1743763389299,0.06573508,115.91,115.87,30.85335056]
[1743763389705,0.06573508,115.91,115.85,361.81335056]
[1743763389903,0.06573508,115.91,115.86,38.04]
[1743763390407,0.06573508,115.91,115.85,361.81335056]
[1743763390607,8.6291,115.9,115.87,8.6305]
[1743763390908,0.06573508,115.91,115.86,38.04]
[1743763391107,8.69393508,115.91,115.89,8.6293]
[1743763392007,8.69393508,115.91,115.88,8.6299]
[1743763392207,0.06573508,115.91,115.85,361.81335056]
[1743763392408,0.06573508,115.91,115.85,330.96]
[1743763392603,0.06573508,115.91,115.86,38.04]
[1743763392804,8.6307,115.88,115.86,38.04]
[1743763393009,2.2566,115.9,115.81,30.85335056]
[1743763393207,8.6321,115.86,115.83,8.6334]
[1743763393502,2.351,115.87,115.82,38.04]
[1743763393717,0.06072645,115.86,115.82,38.04]
[1743763393916,0.06072645,115.86,115.79,331.04]
[1743763394106,0.06072645,115.86,115.79,369.08]
[1743763394313,8.6358,115.81,115.74,331.08]
[1743763394617,38.04,115.85,115.75,68.89335056]
[1743763394812,8.6361,115.81,115.77,8.638]
[1743763395018,0.05573409,115.79,115.75,68.89335056]
[1743763395218,0.05573409,115.79,115.74,331.08]
[1743763395219,0.05573409,115.79,115.76,38.04]
[1743763395418,0.05573409,115.79,115.78,8.6377]
[1743763396214,0.05573409,115.79,115.7,1.50246093]
[1743763396419,8.6366,115.8,115.73,30.85335056]
[1743763396719,0.0587423,115.76,115.75,39.49325056]
[1743763396915,30.85335056,115.86,115.75,30.85335056]
[1743763397119,2.3319,115.84,115.77,30.85335056]
[1743763397315,2.3319,115.84,115.78,38.04]
[1743763397520,8.6351,115.82,115.78,38.04]
[1743763397716,8.6351,115.82,115.79,8.6369]
[1743763397918,2.3319,115.84,115.78,38.04]
[1743763398220,0.05671003,115.82,115.79,0.0632163]
[1743763398620,2.42911003,115.82,115.79,0.0632163]
[1743763399012,2.2087,115.81,115.79,0.0632163]
[1743763399422,8.6362,115.8,115.79,0.0632163]
[1743763400019,10.8445,115.81,115.79,0.0632163]
[1743763400418,2.2087,115.81,115.79,0.0632163]
[1743763400619,8.69181003,115.82,115.79,8.7001163]
[1743763400919,8.6359,115.81,115.79,0.0632163]
[1743763401222,0.05671003,115.82,115.79,30.91656686]
[1743763401418,0.05671003,115.82,115.79,0.0632163]
[1743763401614,8.6359,115.81,115.79,0.0632163]
[1743763401814,0.05671003,115.82,115.79,0.0632163]
[1743763403314,8.636,115.81,115.79,0.0632163]
[1743763403515,0.05671003,115.82,115.79,0.0632163]
[1743763404315,8.6362,115.8,115.79,0.0632163]
[1743763405620,8.6381,115.78,115.75,8.6396]
[1743763405816,2.3125,115.79,115.75,8.6396]
[1743763406017,2.3125,115.79,115.74,8.6403]
[1743763406228,2.3125,115.79,115.71,30.85335056]
[1743763406229,30.85335056,115.76,115.68,331.36]
[1743763406416,38.08,115.75,115.68,331.36]
[1743763406617,8.6434,115.71,115.68,340.0048]
[1743763406817,8.6434,115.71,115.68,331.36]
[1743763407217,8.6439,115.7,115.68,331.36]
[1743763407420,0.05938245,115.71,115.68,331.36]
[1743763407621,0.05938245,115.71,115.69,38.08]
[1743763407819,19.34367078,115.77,115.69,57.42367078]
[1743763408126,19.34367078,115.77,115.68,331.36]
[1743763408323,19.34367078,115.77,115.69,38.06]
[1743763408524,19.34367078,115.77,115.68,350.70367078]
[1743763408717,19.34367078,115.77,115.69,38.06]
[1743763409018,0.06332791,115.74,115.71,0.06346757]
[1743763409419,8.70442791,115.74,115.71,0.06346757]
[1743763409815,8.6415,115.73,115.71,0.06346757]
[1743763410115,0.06332791,115.74,115.71,0.06346757]
[1743763410318,0.06332791,115.74,115.71,38.14346757]
[1743763410522,0.06332791,115.74,115.71,57.48713835]
[1743763410924,0.06332791,115.74,115.71,66.12953835]
[1743763411116,38.08,115.84,115.73,19.34367078]
[1743763411317,19.34367078,115.82,115.74,38.08]
[1743763411517,8.6373,115.79,115.75,331.46]
[1743763411727,19.34367078,115.82,115.75,331.46]
[1743763411928,8.6381,115.78,115.75,331.46]
[1743763412323,8.70227705,115.78,115.75,331.51665782]
[1743763412524,0.06417705,115.78,115.75,331.51665782]
[1743763412729,0.06417705,115.78,115.75,350.8603286]
[1743763413124,0.06417705,115.78,115.75,331.51665782]
[1743763413725,8.6392,115.76,115.75,331.51665782]
[1743763413924,19.40784783,115.78,115.73,331.5]
[1743763414125,19.34367078,115.78,115.73,331.5]
[1743763414624,21.50807078,115.78,115.73,331.5]
[1743763415023,19.34367078,115.76,115.74,0.06536862]
[1743763415425,8.6421,115.73,115.7,331.5]
[1743763415928,8.6421,115.73,115.69,19.34367078]
[1743763416127,8.6422,115.72,115.7,331.5]
[1743763416327,19.34367078,115.74,115.62,1.50330468]
[1743763416519,8.6434,115.71,115.66,19.34367078]
[1743763416719,19.34367078,115.74,115.67,38.08]
[1743763417026,8.6449,115.69,115.67,38.08]
[1743763417222,57.42367078,115.74,115.64,331.5]
[1743763417528,19.40845203,115.69,115.64,331.56]
[1743763417729,0.06478125,115.69,115.64,331.56]
[1743763418029,0.06478125,115.69,115.64,350.90367078]
[1743763418228,8.6456,115.68,115.64,350.90367078]
[1743763418425,0.06478125,115.69,115.66,19.34367078]
[1743763418628,0.06478125,115.69,115.68,19.34367078]
[1743763418928,0.06478125,115.69,115.67,38.08]
[1743763419330,0.06478125,115.69,115.67,57.42367078]
[1743763419725,0.06478125,115.69,115.67,66.06917078]
[1743763419933,0.06478125,115.69,115.67,57.42367078]
[1743763420431,0.06478125,115.69,115.65,57.42367078]
[1743763420821,0.06478125,115.69,115.67,27.98937078]
[1743763421021,8.70918125,115.69,115.68,38.08]
[1743763421432,0.06478125,115.69,115.68,38.08]
[1743763422534,0.06478125,115.69,115.68,57.42367078]
[1743763422734,0.06478125,115.69,115.68,38.08]
[1743763423036,0.06478125,115.69,115.64,331.56]
[1743763423230,0.06478125,115.69,115.66,19.34367078]
[1743763423632,0.06478125,115.69,115.67,8.6455]
[1743763424032,0.06478125,115.69,115.66,19.34367078]
[1743763424033,0.06478125,115.69,115.68,46.7252]
[1743763424233,0.06478125,115.69,115.68,66.06887078]
[1743763424433,0.06478125,115.69,115.68,57.42367078]
[1743763424733,8.70918125,115.69,115.68,38.08]
[1743763425235,8.6454,115.68,115.66,19.34367078]
[1743763425430,0.06478125,115.69,115.66,19.34367078]
[1743763425631,0.06478125,115.69,115.65,38.08]
[1743763426027,0.06478125,115.69,115.67,62.0]
[1743763426230,8.6455,115.68,115.67,62.0]
[1743763427033,0.06478125,115.69,115.67,62.0]
[1743763427443,8.70968125,115.69,115.67,62.0]
[1743763428143,0.06478125,115.69,115.67,62.0]
[1743763428436,0.06478125,115.69,115.68,38.08]
[1743763429236,0.06478125,115.69,115.68,46.7252]
[1743763429432,2.1809,115.79,115.68,66.06367078]
[1743763429734,4.4166,115.79,115.68,69.0151429]
[1743763429931,4.4166,115.79,115.7,30.9351429]
[1743763430134,30.9351429,115.78,115.68,69.0151429]
[1743763430338,69.0151429,115.78,115.68,69.0151429]
[1743763430535,0.06418835,115.74,115.72,0.06580869]
[1743763431039,0.06418835,115.74,115.73,8.6414]
[1743763432438,0.06418835,115.74,115.72,0.06580869]
[1743763432636,0.06418835,115.74,115.73,62.0]
[1743763432835,0.06418835,115.74,115.73,70.6414]
[1743763433037,0.06418835,115.74,115.73,62.0]
[1743763433442,0.06418835,115.74,115.73,70.6414]
[1743763434033,0.06418835,115.74,115.73,62.0]
[1743763435633,8.70488835,115.74,115.73,62.0]
[1743763436240,0.06418835,115.74,115.73,62.0]
[1743763436742,8.70488835,115.74,115.73,62.0]
[1743763437437,0.06418835,115.74,115.66,30.9351429]
[1743763437642,30.9351429,115.74,115.66,369.7]
[1743763437839,8.6433,115.71,115.68,8.6446]
[1743763438131,4.3813,115.73,115.68,8.6446]
[1743763438337,8.644,115.7,115.68,8.6446]
[1743763438542,8.70571823,115.7,115.67,8.6456]
[1743763438743,0.06171823,115.7,115.67,8.6456]
[1743763438937,8.70581823,115.7,115.66,400.6351429]
[1743763439243,0.06171823,115.7,115.66,400.6351429]
[1743763439546,8.70571823,115.7,115.66,400.6351429]
[1743763439738,8.70571823,115.7,115.67,8.6453]
[1743763440139,8.70571823,115.7,115.67,8.6458]
[1743763440334,8.70571823,115.7,115.66,400.6351429]
[1743763440335,0.06171823,115.7,115.68,62.0]
[1743763441244,0.06171823,115.7,115.69,8.6444]
[1743763441639,0.06171823,115.7,115.68,62.0]
[1743763441840,8.6459,115.67,115.66,331.62]
[1743763442039,40.3399,115.69,115.61,331.68]
[1743763442243,40.3399,115.69,115.62,8.6493]
[1743763442444,8.6478,115.65,115.62,8.6493]
[1743763442744,0.06324196,115.66,115.61,369.76]
[1743763442945,0.06324196,115.66,115.62,62.0]
[1743763444139,8.6487,115.64,115.62,62.0]
[1743763444347,0.06324196,115.66,115.62,62.0]
[1743763444544,8.6485,115.64,115.61,340.3301]
[1743763444937,0.06208119,115.64,115.61,340.3301]
[1743763445139,8.6489,115.63,115.61,331.68]
[1743763445346,0.06208119,115.64,115.61,331.68]
[1743763445747,0.06208119,115.64,115.61,340.3304]
[1743763446244,8.6491,115.63,115.61,331.68]
[1743763446644,0.06208119,115.64,115.61,331.68]
[1743763446845,8.71058119,115.64,115.61,331.68]
[1743763447047,0.06208119,115.64,115.57,30.9351429]
[1743763447250,8.6517,115.6,115.57,8.653]
[1743763447446,0.05591398,115.62,115.56,369.82]
[1743763447645,4.5643,115.67,115.57,92.9351429]
[1743763447949,0.05680017,115.63,115.59,30.9351429]
[1743763448150,0.05680017,115.63,115.61,30.9351429]
[1743763448345,0.05680017,115.63,115.62,8.6497]
[1743763449146,0.05680017,115.63,115.61,39.5851429]
[1743763449347,0.05680017,115.63,115.6,38.08]
[1743763449651,8.70580017,115.63,115.6,38.08]
[1743763449850,8.70580017,115.63,115.6,46.7308]
[1743763450144,0.05680017,115.63,115.6,38.08]
[1743763450948,0.05680017,115.63,115.61,8.6501]
[1743763451153,0.05680017,115.63,115.57,38.08]
[1743763451350,0.05680017,115.63,115.57,69.0151429]
[1743763451747,8.70620017,115.63,115.57,69.0151429]
[1743763452052,8.70620017,115.63,115.6,8.6511]
[1743763452346,0.05680017,115.63,115.57,69.0151429]
[1743763452552,0.05680017,115.63,115.62,8.6497]
[1743763452943,0.05680017,115.63,115.61,38.08]
[1743763454044,8.6497,115.62,115.61,38.08]
[1743763454444,8.6497,115.62,115.59,8.6516]
[1743763454953,8.6497,115.62,115.6,8.6511]
[1743763455152,0.05680017,115.63,115.58,69.0151429]
[1743763455456,0.05680017,115.63,115.59,8.6516]
[1743763455653,8.6501,115.62,115.59,8.6516]
[1743763456053,0.05680017,115.63,115.58,46.7323]
[1743763456250,0.05680017,115.63,115.55,30.9351429]
[1743763456456,4.4716,115.63,115.54,334.1675]
[1743763456654,8.6523,115.59,115.56,8.6538]
[1743763456957,0.0605828,115.6,115.55,69.0351429]
[1743763457255,0.0605828,115.6,115.57,30.9351429]
[1743763457456,0.0605828,115.6,115.58,38.1]
[1743763457658,8.6487,115.64,115.61,8.6503]
[1743763457856,4.4716,115.66,115.59,62.0]
[1743763458258,8.6501,115.62,115.59,62.0]
[1743763458450,4.4716,115.66,115.59,62.0]
[1743763458655,30.9351429,115.65,115.59,62.0]
[1743763458855,38.16527165,115.64,115.61,0.06488571]
[1743763459261,8.6497,115.62,115.61,0.06488571]
[1743763459463,0.06527165,115.64,115.61,0.06488571]
[1743763459960,0.06527165,115.64,115.62,8.6493]
[1743763460150,0.06527165,115.64,115.61,38.16488571]
[1743763460354,0.06527165,115.64,115.63,8.6489]
[1743763460558,2.2758,115.67,115.61,69.10002861]
[1743763461060,2.2758,115.67,115.61,401.02002861]
[1743763461763,0.06469445,115.65,115.61,401.02002861]
[1743763462459,2.3565,115.69,115.63,30.9351429]
[1743763462663,2.2894,115.7,115.64,38.1]
[1743763463165,8.645,115.69,115.66,8.6462]
[1743763463664,8.7007374,115.69,115.66,8.70090533]
[1743763463965,0.0559374,115.69,115.66,0.05440533]
[1743763464167,8.6459,115.68,115.66,0.05440533]
[1743763464757,39.5751429,115.68,115.51,331.9]
[1743763465064,30.9351429,115.63,115.51,32.66659472]
[1743763465363,42.6904,115.62,115.53,30.9351429]
[1743763465663,42.6904,115.62,115.53,69.0151429]
[1743763465863,8.6525,115.59,115.55,8.6545]
[1743763466065,0.05950397,115.59,115.56,0.06002352]
[1743763466266,8.71180397,115.59,115.56,0.06002352]
[1743763466463,0.05950397,115.59,115.56,38.14002352]
[1743763468566,0.05950397,115.59,115.57,8.6527]
[1743763468868,2.3542,115.62,115.57,30.9351429]
[1743763469265,2.3542,115.62,115.6,8.6506]
[1743763469461,2.3542,115.62,115.61,62.0]
[1743763470963,2.3542,115.62,115.6,0.05875147]
[1743763471565,2.3542,115.62,115.55,38.08]
[1743763472075,8.6515,115.6,115.57,8.6531]
[1743763472367,2.3542,115.62,115.57,8.6531]
[1743763472771,8.70963053,115.61,115.58,0.0571557]
[1743763472973,0.05863053,115.61,115.58,0.0571557]
[1743763473970,33.28287343,115.61,115.57,62.0]
[1743763474269,33.2242429,115.61,115.57,62.0]
[1743763474667,30.9351429,115.59,115.49,30.9351429]
[1743763474865,69.0151429,115.59,115.48,331.94]
[1743763475169,69.0151429,115.59,115.52,0.06030534]
[1743763475170,0.06449069,115.55,115.52,0.06030534]
[1743763475370,0.06449069,115.55,115.5,38.08]
[1743763475567,0.06449069,115.55,115.54,8.6557]
[1743763475964,0.06449069,115.55,115.52,0.06319495]
[1743763477276,0.06449069,115.55,115.54,8.6557]
[1743763477672,0.06449069,115.55,115.54,70.6557]
[1743763478671,0.06449069,115.55,115.54,62.0]
[1743763479473,0.00151218,115.55,115.54,70.6557]
[1743763482880,11.0043,115.62,115.59,8.6518]
[1743763483081,2.3542,115.62,115.59,8.6518]
[1743763483270,8.6508,115.61,115.58,46.7523]
[1743763483471,2.3542,115.62,115.58,38.1]
[1743763483677,4.591,115.66,115.58,38.1]
[1743763483872,8.6478,115.65,115.62,8.649]
[1743763484080,0.06275079,115.63,115.62,8.649]
[1743763484283,0.06275079,115.63,115.61,38.15749772]
[1743763484882,8.6497,115.62,115.61,38.15749772]
[1743763485182,0.06275079,115.63,115.61,38.15749772]
[1743763485372,8.6497,115.62,115.61,38.15749772]
[1743763485982,8.6497,115.62,115.61,62.05749772]
[1743763487182,46.72,115.62,115.52,332.06640368]
[1743763487383,40.4498,115.62,115.55,8.6546]
[1743763487579,40.4498,115.62,115.52,40.426]
[1743763487772,30.9351429,115.61,115.52,40.426]
[1743763488086,8.6538,115.57,115.52,40.426]
[1743763488283,0.05871378,115.58,115.55,0.06354086]
[1743763488482,2.3397,115.6,115.55,0.06354086]
[1743763488685,8.6542,115.56,115.55,0.06354086]
[1743763489884,8.6553,115.55,115.5,332.02]
[1743763490085,8.6553,115.55,115.52,8.6565]
[1743763490286,38.08,115.59,115.53,38.08]
[1743763490484,8.6537,115.57,115.53,38.08]
[1743763490784,38.08,115.59,115.53,38.08]
[1743763491175,0.06172229,115.57,115.55,0.03345816]
[1743763491378,8.71562229,115.57,115.55,0.03345816]
[1743763491583,0.06172229,115.57,115.55,0.03345816]
[1743763492279,0.06172229,115.57,115.55,8.68775816]
[1743763492483,0.06172229,115.57,115.55,0.03345816]
[1743763492788,8.71542229,115.57,115.55,0.03345816]
[1743763493391,0.06172229,115.57,115.55,8.68815816]
[1743763493584,0.06172229,115.57,115.56,62.0]
[1743763493987,8.71512229,115.57,115.56,62.0]